fUST/lending_fUST_20250322
["ID","MTS","AMOUNT","RATE_DAILY","PERIOD"]
[356534708,1742631038574,-2205.8705646,0.00032316,2]
[356534709,1742631038584,-2090.54540594,0.00032317,2]
[356534767,1742631142095,725.87025339,0.00024953,2]
[356534768,1742631932091,-1156.04677353,0.00020376,2]
[356534769,1742631932117,-522.30399577,0.00021,2]
[356534770,1742631932141,-418.12010506,0.00026241,2]
[356534771,1742631932163,-160.0,0.00026241,2]
[356534772,1742631932185,-500.0,0.00027397,5]
[356534773,1742631932210,-175.550867,0.00027884,2]
[356534774,1742631932235,-1063.05838719,0.000279,4]
[356534775,1742631932258,-250.0,0.00027937,2]
[356534776,1742631932279,-1899.9991409,0.00027983,2]
[356534778,1742631941317,-227.565775,0.00027983,2]
[356534779,1742631941338,-285.79131619,0.00027996,2]
[356534781,1742632036081,-232.67146729,0.00027397,5]
[356534782,1742632040086,-267.32853271,0.00027397,5]
[356534783,1742632040107,-257.78512111,0.00027996,2]
[356534784,1742632040128,-1000.0,0.00028767,5]
[356534785,1742632040152,-175.550867,0.00029,2]
[356534786,1742632040172,-903.87934767,0.00030137,5]
[356534787,1742632040195,-1027.62310753,0.000309,5]
[356534788,1742632040216,-254.44243503,0.00031269,2]
[356534797,1742632145085,-3500.0,0.00027,5]
[356534798,1742632145113,-993.36900382,0.000279,4]
[356534799,1742632145136,-300.0,0.00027989,2]
[356534800,1742632145158,-28364.9774737,0.0002799,2]
[356534801,1742632145187,-993.3690038,0.00028659,5]
[356534802,1742632145209,-868.81251932,0.00029,2]
[356534808,1742632153092,-993.3690038,0.00029417,5]
[356534809,1742632153114,-993.3690038,0.00030176,5]
[356534810,1742632153135,-420.0,0.00030228,2]
[356534811,1742632153157,-993.3690038,0.00030934,5]
[356534814,1742632217413,600.0,0.00027973,2]
[356534815,1742632218093,622.2,0.00028028,2]
[356534816,1742632222986,500.0,0.00027397,5]
[356534817,1742632223024,865.043189,0.00028767,5]
[356534818,1742632223045,134.956811,0.00028767,5]
[356534823,1742632231748,-2361.01499754,0.00031269,2]
[356534824,1742632231758,-160.0,0.00031297,2]
[356534825,1742632231768,-7666.97120571,0.0003133,2]
[356534826,1742632231777,-16751.03891066,0.00031333,2]
[356534846,1742632237783,-712.11838601,0.00031333,2]
[356534847,1742632240227,-25.85238525,0.00031333,2]
[356534850,1742632242964,-7410.99031808,0.00031333,2]
[356534851,1742632242973,-993.3690038,0.00031693,6]
[356534852,1742632242983,-4336.23376027,0.00032317,2]
[356534853,1742632242992,-993.3690038,0.00032452,6]
[356534854,1742632243004,-152.05,0.000327,31]
[356534855,1742632243013,-152.05,0.000327,31]
[356534857,1742632243023,-152.05,0.000327,31]
[356534858,1742632243032,-152.05,0.000327,31]
[356534859,1742632243041,-152.05,0.000327,31]
[356534860,1742632243051,-152.05,0.000327,31]
[356534861,1742632243061,-152.05,0.000327,31]
[356534862,1742632243072,-152.05,0.000327,31]
[356534863,1742632243081,-152.05,0.000327,31]
[356534864,1742632243090,-152.05,0.000327,31]
[356534865,1742632243099,-182.640625,0.00032802,2]
[356534866,1742632243108,-453.82703772,0.00032876,7]
[356534867,1742632243118,-160.47278248,0.00032877,2]
[356534868,1742632243129,-2757.07656578,0.00032877,5]
[356534869,1742632243139,-153.8653548,0.00033,2]
[356534870,1742632243149,-453.82703772,0.00033036,7]
[356534871,1742632243159,-993.3690038,0.0003321,6]
[356534872,1742632243169,-1975.09780568,0.0003357,7]
[356534873,1742632243178,-2361.01499747,0.00033833,2]
[356534874,1742632243187,-223.93502653,0.00033896,2]
[356534875,1742632243197,-993.3690038,0.00033969,6]
[356534876,1742632243212,-223.93502649,0.00033972,2]
[356534877,1742632243223,-5000.0,0.00033983,2]
[356534878,1742632243232,-160.0,0.00033996,2]
[356534879,1742632243241,-833.92477148,0.00033996,2]
[356534880,1742632243251,-223.93502649,0.00034048,2]
[356534881,1742632243260,-223.93502649,0.00034124,2]
[356534882,1742632243269,-1238.20953581,0.000342,2]
[356534883,1742632243281,-500.0,0.00034206,5]
[356534884,1742632243290,-500.0,0.00034273,5]
[356534885,1742632243299,-500.0,0.00034273,5]
[356534886,1742632243309,-500.0,0.00034273,5]
[356534887,1742632243318,-500.0,0.00034273,5]
[356534888,1742632243327,-500.0,0.00034273,5]
[356534889,1742632243336,-500.0,0.00034273,5]
[356534890,1742632243345,-500.0,0.00034273,5]
[356534891,1742632243354,-500.0,0.00034273,5]
[356534892,1742632243364,-2454.23217082,0.00034273,2]
[356534893,1742632243373,-4878.06528371,0.00034289,2]
[356534894,1742632243382,-240.20492694,0.00034289,2]
[356534895,1742632243391,-19512.2611348,0.0003429,2]
[356534896,1742632243401,-960.81970776,0.0003429,2]
[356534897,1742632243410,-160.0,0.00034299,7]
[356534898,1742632243420,-637.08221691,0.00034299,7]
[356534899,1742632243429,-27114.03456304,0.00034299,7]
[356534900,1742632243742,-74.74640536,0.00034299,7]
[356534904,1742632245782,-83.38864555,0.000342,2]
[356534905,1742632285714,194.46753705,0.00024953,2]
[356534952,1742633145097,-861.78326038,0.00025,120]
[356534953,1742633145117,-179.37,0.00026,15]
[356534954,1742633145137,-500.0,0.00027397,5]
[356534955,1742633145157,-250.0,0.00028433,2]
[356534956,1742633145176,-200.9110784,0.00028516,2]
[356534957,1742633145197,-2020.9048839,0.00028592,2]
[356534958,1742633145217,-1000.0,0.00028767,5]
[356534959,1742633145237,-733.4132981,0.00028767,2]
[356534960,1742633145258,-212.3194406,0.00028869,2]
[356534961,1742633145282,-1148.01130052,0.000289,5]
[356534962,1742633145303,-300.0,0.00028999,2]
[356534963,1742633145324,-3820.09299153,0.00029,2]
[356534964,1742633145349,-1148.0113005,0.00029624,5]
[356534965,1742633145370,-2846.9133225,0.00029844,2]
[356534966,1742633145391,-500.0,0.00030137,5]
[356534967,1742633145416,-1148.0113005,0.00030348,5]
[356534968,1742633145440,-1148.0113005,0.00031072,5]
[356534969,1742633145460,-420.0,0.00031287,2]
[356534970,1742633145480,-1209.54128727,0.00031517,2]
[356534971,1742633145503,-500.0,0.00031535,2]
[356534972,1742633145524,-275.20911477,0.00031535,2]
[356534973,1742633145545,-447.67665197,0.00031535,2]
[356534974,1742633145565,-24900.0,0.00031536,2]
[356534975,1742633145591,-1148.0113005,0.00031797,6]
[356534976,1742633145614,-1148.0113005,0.00032521,6]
[356534977,1742633145639,-152.87,0.000327,31]
[356534978,1742633145662,-152.87,0.000327,31]
[356534979,1742633145686,-152.87,0.000327,31]
[356534980,1742633145710,-152.87,0.000327,31]
[356534981,1742633145733,-152.87,0.000327,31]
[356534982,1742633145757,-152.87,0.000327,31]
[356534983,1742633145781,-152.87,0.000327,31]
[356534984,1742633145805,-152.87,0.000327,31]
[356534985,1742633145829,-152.87,0.000327,31]
[356534986,1742633145849,-2630.45389479,0.00032876,7]
[356534987,1742633149156,-161.3074475,0.00028999,2]
[356534988,1742633249126,-192.60165387,0.00028999,2]
[356534989,1742633249147,-400.0,0.00032875,2]
[356534990,1742633249169,-1779.61892813,0.00032876,7]
[356534991,1742633249190,-4410.07282292,0.00032876,7]
[356534992,1742633249210,-130.64241241,0.00032877,2]
[356535619,1742633438120,-152.32,0.000327,31]
[356535621,1742633438131,-152.32,0.000327,31]
[356535622,1742633438141,-152.32,0.000327,31]
[356535623,1742633438151,-152.32,0.000327,31]
[356535624,1742633438160,-152.32,0.000327,31]
[356535625,1742633438170,-152.32,0.000327,31]
[356535626,1742633438179,-152.32,0.000327,31]
[356535628,1742633438189,-152.32,0.000327,31]
[356535630,1742633438199,-400.0,0.00032999,2]
[356535632,1742633438208,-4356.9204299,0.00033,2]
[356536153,1742633443102,-17.92304972,0.00033,2]
[356536460,1742633446267,-768.1039797,0.00033,2]
[356537143,1742633480155,2864.6716905,0.00024953,2]
[356537144,1742633480178,393.70807997,0.00024953,2]
[356537145,1742633542280,697.32992726,0.00024953,2]
[356537146,1742633792088,200.0,0.00018,2]
[356537147,1742634338090,-591.12131187,0.0003123,2]
[356537148,1742634338111,-1140.64182303,0.0003184,2]
[356537149,1742634338136,-24.4757695,0.00031864,2]
[356537151,1742634451101,-1646.33066131,0.00031865,2]
[356537163,1742634632253,-225.9557375,0.00031765,2]
[356537164,1742634632263,-86.32370703,0.00031865,2]
[356537226,1742634638044,-1009.9566468,0.00031865,2]
[356537227,1742634638097,-434.81370448,0.00031865,2]
[356537280,1742634646150,-3557.40717328,0.00031865,2]
[356537281,1742634646160,-3554.9180731,0.00032316,2]
[356537282,1742634646170,-153.76,0.000327,31]
[356537283,1742634646180,-153.76,0.000327,31]
[356537284,1742634646189,-153.76,0.000327,31]
[356537285,1742634646198,-153.76,0.000327,31]
[356537286,1742634646210,-153.76,0.000327,31]
[356537287,1742634646219,-153.76,0.000327,31]
[356537288,1742634646229,-153.76,0.000327,31]
[356537289,1742634646239,-153.76,0.000327,31]
[356537290,1742634646249,-153.76,0.000327,31]
[356537291,1742634646258,-323.56523861,0.000329,2]
[356537299,1742635351618,176.664437,0.00010959,2]
[356537300,1742635351806,176.664437,0.00014247,2]
[356537301,1742635352017,176.664437,0.00017534,2]
[356537302,1742635544084,-176.664437,0.00020822,2]
[356537303,1742635544106,-176.664437,0.0002411,2]
[356537304,1742635544126,-176.664437,0.00027397,2]
[356537305,1742635544146,-839.25216748,0.00030371,2]
[356537306,1742635544167,-5000.0,0.00031316,2]
[356537307,1742635544189,-400.0,0.0003139,2]
[356537308,1742635544209,-2230.2942175,0.00031391,2]
[356537309,1742635544229,-483.71260837,0.00031889,2]
[356537310,1742635544256,-6.62087122,0.000327,31]
[356537311,1742635549193,-147.10912878,0.000327,31]
[356537312,1742635549223,-153.73,0.000327,31]
[356537313,1742635549251,-153.73,0.000327,31]
[356537314,1742635549278,-153.73,0.000327,31]
[356537315,1742635549305,-153.73,0.000327,31]
[356537316,1742635549332,-153.73,0.000327,31]
[356537317,1742635549358,-153.73,0.000327,31]
[356537318,1742635549384,-153.73,0.000327,31]
[356537319,1742635549410,-153.73,0.000327,31]
[356537320,1742635549438,-153.73,0.000327,31]
[356537321,1742635549462,-1149.72129002,0.000329,7]
[356537322,1742635647088,-292.29341143,0.00032899,7]
[356537323,1742635647116,-400.0,0.00032899,2]
[356537324,1742635647142,-994.91910522,0.000329,7]
[356537326,1742635708850,278.0788886,0.0001,2]
[356537327,1742635715080,610.86787468,9e-05,2]
[356537328,1742635718690,1000.0,0.0001,2]
[356537356,1742635832340,-160.0,0.000329,7]
[356537357,1742635832351,-834.31595416,0.000329,7]
[356537358,1742635832360,-600.0,0.0003298,2]
[356537359,1742635832370,-400.0,0.00032999,2]
[356537360,1742635832380,-6954.50619832,0.00033,2]
[356537361,1742635832391,-151.0,0.00033,2]
[356537362,1742635832400,-258.486223,0.00033,2]
[356537363,1742635832410,-622.2,0.00033035,2]
[356537364,1742635832419,-645.2214,0.0003309,2]
[356537365,1742635832429,-669.0945918,0.00033145,2]
[356537366,1742635832438,-693.8510917,0.000332,2]
[356537367,1742635832448,-719.52358209,0.00033255,2]
[356537369,1742635832458,-746.14595463,0.0003331,2]
[356537371,1742635832467,-5000.0,0.00033316,2]
[356537373,1742635832477,-773.75335495,0.00033365,2]
[356537375,1742635832486,-318.54110845,0.00033486,7]
[356537376,1742635832495,-7457.59113332,0.00033486,7]
[356537389,1742635838403,-1184.43023484,0.00033486,7]
[356537400,1742635846599,-654.40000005,0.00033486,7]
[356537401,1742636458544,3510.0,0.00018,2]
[356537402,1742636474200,-1000.0,0.00049981,120]
[356537403,1742636474228,-2789.14663976,0.00049981,120]
[356537404,1742636474255,-1983.0,0.00049981,120]
[356537405,1742636474282,-440.4212,0.00049981,120]
[356537406,1742636474308,-3368.58921652,0.00049981,120]
[356537407,1742636474336,-358.77289374,0.00049981,120]
[356537408,1742636474363,-185.0,0.00049981,120]
[356537409,1742636474390,-425.6965151,0.00049981,120]
[356537410,1742636474417,-10000.0,0.00049981,30]
[356537411,1742636474444,-10000.0,0.00049981,40]
[356537412,1742636474471,-500355.15370573,0.00049981,30]
[356537413,1742636474499,-31063.6968814,0.00049981,120]
[356537414,1742636474526,-185413.92353165,0.00049981,120]
[356537415,1742636474551,-502813.44158763,0.00049981,120]
[356537416,1742636474576,-3590.0,0.00049981,31]
[356537417,1742636474601,-500.0,0.00049981,120]
[356537418,1742636474626,-500.0,0.00049981,120]
[356537419,1742636474651,-500.0,0.00049981,120]
[356537420,1742636474677,-500.0,0.00049981,120]
[356537421,1742636474702,-500.0,0.00049981,120]
[356537422,1742636474726,-500.0,0.00049981,120]
[356537423,1742636474750,-500.0,0.00049981,120]
[356537424,1742636474774,-500.0,0.00049981,120]
[356537425,1742636474799,-500.0,0.00049981,120]
[356537426,1742636474824,-500.0,0.00049981,120]
[356537427,1742636474849,-500.0,0.00049981,120]
[356537428,1742636474874,-500.0,0.00049981,120]
[356537429,1742636474899,-500.0,0.00049981,120]
[356537430,1742636474924,-500.0,0.00049981,120]
[356537431,1742636474949,-500.0,0.00049981,120]
[356537432,1742636474974,-500.0,0.00049981,120]
[356537433,1742636475000,-500.0,0.00049981,120]
[356537434,1742636475030,-500.0,0.00049981,120]
[356537435,1742636475056,-500.0,0.00049981,120]
[356537436,1742636475082,-643.9,0.00049981,120]
[356537437,1742636475108,-530.73,0.00049981,120]
[356537438,1742636475133,-530.73,0.00049981,120]
[356537439,1742636475157,-530.73,0.00049981,120]
[356537440,1742636475181,-530.73,0.00049981,120]
[356537441,1742636475205,-530.73,0.00049981,120]
[356537442,1742636475230,-530.73,0.00049981,120]
[356537443,1742636475255,-530.73,0.00049981,120]
[356537444,1742636475280,-530.73,0.00049981,120]
[356537445,1742636475306,-530.73,0.00049981,120]
[356537446,1742636475333,-530.73,0.00049981,120]
[356537447,1742636475359,-530.73,0.00049981,120]
[356537448,1742636475384,-530.73,0.00049981,120]
[356537449,1742636475411,-530.73,0.00049981,120]
[356537450,1742636475439,-530.73,0.00049981,120]
[356537451,1742636475465,-530.73,0.00049981,120]
[356537452,1742636475492,-530.73,0.00049981,120]
[356537453,1742636475519,-530.73,0.00049981,120]
[356537454,1742636475544,-530.73,0.00049981,120]
[356537455,1742636475570,-530.73,0.00049981,120]
[356537456,1742636475804,-530.73,0.00049981,120]
[356537457,1742636475831,-530.73,0.00049981,120]
[356537458,1742636475860,-530.73,0.00049981,120]
[356537459,1742636475887,-530.73,0.00049981,120]
[356537460,1742636475915,-530.76582547,0.00049981,120]
[356537461,1742636475942,-500.0,0.00049981,120]
[356537462,1742636475967,-500.0,0.00049981,120]
[356537463,1742636475993,-500.0,0.00049981,120]
[356537464,1742636476019,-500.0,0.00049981,120]
[356537465,1742636476044,-500.0,0.00049981,120]
[356537466,1742636476070,-500.0,0.00049981,120]
[356537467,1742636476095,-500.0,0.00049981,120]
[356537468,1742636476122,-179.83849071,0.00049981,120]
[356537469,1742636476149,-500.0,0.00049981,120]
[356537470,1742636476175,-500.0,0.00049981,120]
[356537471,1742636476201,-500.0,0.00049981,120]
[356537472,1742636476227,-500.0,0.00049981,120]
[356537473,1742636476253,-500.0,0.00049981,120]
[356537474,1742636476279,-500.0,0.00049981,120]
[356537475,1742636476304,-500.0,0.00049981,120]
[356537476,1742636476330,-500.0,0.00049981,120]
[356537477,1742636476357,-500.0,0.00049981,120]
[356537478,1742636476383,-540.70524451,0.00049981,120]
[356537479,1742636476408,-500.0,0.00049981,120]
[356537480,1742636476438,-500.0,0.00049981,120]
[356537481,1742636476465,-500.0,0.00049981,120]
[356537482,1742636476491,-500.0,0.00049981,120]
[356537483,1742636476516,-500.0,0.00049981,120]
[356537484,1742636476544,-500.0,0.00049981,120]
[356537485,1742636476570,-500.0,0.00049981,120]
[356537486,1742636476594,-500.0,0.00049981,120]
[356537487,1742636476620,-500.0,0.00049981,120]
[356537488,1742636476646,-500.0,0.00049981,120]
[356537489,1742636476672,-500.0,0.00049981,120]
[356537490,1742636476698,-500.0,0.00049981,120]
[356537491,1742636476723,-500.0,0.00049981,120]
[356537492,1742636476750,-500.0,0.00049981,120]
[356537493,1742636476775,-500.0,0.00049981,120]
[356537494,1742636476804,-500.0,0.00049981,120]
[356537495,1742636476829,-500.0,0.00049981,120]
[356537496,1742636476859,-500.0,0.00049981,120]
[356537497,1742636476886,-500.0,0.00049981,120]
[356537498,1742636476914,-532.73696989,0.00049981,120]
[356537499,1742636476940,-500.0,0.00049981,120]
[356537500,1742636476965,-500.0,0.00049981,120]
[356537501,1742636476990,-500.0,0.00049981,120]
[356537502,1742636477018,-500.0,0.00049981,120]
[356537503,1742636477042,-500.0,0.00049981,120]
[356537504,1742636477067,-500.0,0.00049981,120]
[356537505,1742636477092,-500.0,0.00049981,120]
[356537506,1742636477117,-500.0,0.00049981,120]
[356537507,1742636477141,-500.0,0.00049981,120]
[356537508,1742636477168,-500.0,0.00049981,120]
[356537509,1742636477193,-500.0,0.00049981,120]
[356537510,1742636477217,-500.0,0.00049981,120]
[356537511,1742636477243,-500.0,0.00049981,120]
[356537512,1742636477269,-500.0,0.00049981,120]
[356537513,1742636477294,-500.0,0.00049981,120]
[356537514,1742636477319,-500.0,0.00049981,120]
[356537515,1742636477344,-500.0,0.00049981,120]
[356537516,1742636477370,-500.0,0.00049981,120]
[356537517,1742636477396,-154.85879604,0.00049981,120]
[356537518,1742636477421,-880.44,0.00049981,120]
[356537519,1742636477447,-880.44,0.00049981,120]
[356537520,1742636477472,-880.44,0.00049981,120]
[356537521,1742636477496,-880.44,0.00049981,120]
[356537522,1742636477521,-880.44,0.00049981,120]
[356537523,1742636477546,-880.44,0.00049981,120]
[356537524,1742636477570,-880.44,0.00049981,120]
[356537525,1742636477594,-880.44,0.00049981,120]
[356537526,1742636477618,-880.44,0.00049981,120]
[356537527,1742636477642,-880.44,0.00049981,120]
[356537528,1742636477668,-880.44,0.00049981,120]
[356537529,1742636477694,-880.44,0.00049981,120]
[356537530,1742636477720,-500.0,0.00049981,120]
[356537531,1742636477745,-880.44,0.00049981,120]
[356537532,1742636477770,-880.44,0.00049981,120]
[356537533,1742636477794,-1289.26,0.00049981,120]
[356537534,1742636477819,-880.44,0.00049981,120]
[356537535,1742636477846,-1289.26,0.00049981,120]
[356537536,1742636477872,-1289.26,0.00049981,120]
[356537537,1742636477899,-1289.26,0.00049981,120]
[356537538,1742636477924,-500.0,0.00049981,120]
[356537539,1742636477950,-880.44,0.00049981,120]
[356537540,1742636477975,-1289.26,0.00049981,120]
[356537541,1742636478000,-500.0,0.00049981,120]
[356537542,1742636478027,-1289.26,0.00049981,120]
[356537543,1742636478052,-880.44,0.00049981,120]
[356537544,1742636478079,-500.0,0.00049981,120]
[356537545,1742636478106,-880.44,0.00049981,120]
[356537546,1742636478133,-1289.26,0.00049981,120]
[356537547,1742636478160,-500.0,0.00049981,120]
[356537548,1742636478186,-880.44,0.00049981,120]
[356537549,1742636478371,-1289.26,0.00049981,120]
[356537550,1742636478397,-500.0,0.00049981,120]
[356537551,1742636478422,-880.44,0.00049981,120]
[356537552,1742636478449,-1289.26,0.00049981,120]
[356537553,1742636478474,-500.0,0.00049981,120]
[356537554,1742636478501,-1289.26,0.00049981,120]
[356537555,1742636478528,-880.44,0.00049981,120]
[356537556,1742636478553,-500.0,0.00049981,120]
[356537557,1742636478578,-1289.26,0.00049981,120]
[356537558,1742636478603,-880.44,0.00049981,120]
[356537559,1742636478630,-500.0,0.00049981,120]
[356537560,1742636478656,-1289.26,0.00049981,120]
[356537561,1742636478681,-880.44,0.00049981,120]
[356537562,1742636478706,-880.62188218,0.00049981,120]
[356537563,1742636478732,-1289.26,0.00049981,120]
[356537564,1742636478756,-1289.26,0.00049981,120]
[356537565,1742636478780,-1289.26,0.00049981,120]
[356537566,1742636478804,-1289.26,0.00049981,120]
[356537567,1742636478829,-1289.26,0.00049981,120]
[356537568,1742636478854,-1289.26,0.00049981,120]
[356537569,1742636478878,-1289.26,0.00049981,120]
[356537570,1742636478902,-1289.26,0.00049981,120]
[356537571,1742636478926,-500.0,0.00049981,120]
[356537572,1742636478952,-1289.26,0.00049981,120]
[356537573,1742636478979,-544.39114416,0.00049981,120]
[356537574,1742636479005,-1289.26,0.00049981,120]
[356537575,1742636479029,-1289.26,0.00049981,120]
[356537576,1742636479054,-1289.34,0.00049981,120]
[356537577,1742636479078,-500.0,0.00049981,120]
[356537578,1742636479103,-500.0,0.00049981,120]
[356537579,1742636479128,-500.0,0.00049981,120]
[356537580,1742636479153,-500.0,0.00049981,120]
[356537581,1742636479178,-500.0,0.00049981,120]
[356537582,1742636479202,-500.0,0.00049981,120]
[356537583,1742636479226,-500.0,0.00049981,120]
[356537584,1742636479255,-500.0,0.00049981,120]
[356537585,1742636479280,-500.0,0.00049981,120]
[356537586,1742636479305,-500.0,0.00049981,120]
[356537587,1742636479330,-500.0,0.00049981,120]
[356537588,1742636479355,-500.0,0.00049981,120]
[356537589,1742636479380,-500.0,0.00049981,120]
[356537590,1742636479406,-500.0,0.00049981,120]
[356537591,1742636479431,-500.0,0.00049981,120]
[356537592,1742636479457,-500.0,0.00049981,120]
[356537593,1742636479485,-500.0,0.00049981,120]
[356537594,1742636479510,-500.0,0.00049981,120]
[356537595,1742636479535,-500.0,0.00049981,120]
[356537596,1742636479559,-500.0,0.00049981,120]
[356537597,1742636479583,-500.0,0.00049981,120]
[356537598,1742636479608,-500.0,0.00049981,120]
[356537599,1742636479635,-500.0,0.00049981,120]
[356537600,1742636479660,-500.0,0.00049981,120]
[356537601,1742636479684,-500.0,0.00049981,120]
[356537602,1742636479709,-500.0,0.00049981,120]
[356537603,1742636479735,-500.0,0.00049981,120]
[356537604,1742636479759,-604.02718214,0.00049981,120]
[356537605,1742636479782,-947.4,0.00049981,120]
[356537606,1742636479807,-947.4,0.00049981,120]
[356537607,1742636479831,-947.4,0.00049981,120]
[356537608,1742636479856,-947.4,0.00049981,120]
[356537609,1742636479881,-500.0,0.00049981,120]
[356537610,1742636479907,-500.0,0.00049981,120]
[356537611,1742636479931,-500.0,0.00049981,120]
[356537612,1742636479956,-947.4,0.00049981,120]
[356537613,1742636479981,-500.0,0.00049981,120]
[356537614,1742636480006,-947.4,0.00049981,120]
[356537615,1742636480035,-500.0,0.00049981,120]
[356537616,1742636480059,-947.4,0.00049981,120]
[356537617,1742636480084,-490.63031786,0.00049981,120]
[356537618,1742636480113,-947.4,0.00049981,120]
[356537619,1742636480140,-947.4,0.00049981,120]
[356537620,1742636480167,-947.4,0.00049981,120]
[356537621,1742636480192,-947.4,0.00049981,120]
[356537622,1742636480218,-947.4,0.00049981,120]
[356537623,1742636480244,-947.4,0.00049981,120]
[356537624,1742636480270,-947.4,0.00049981,120]
[356537625,1742636480297,-619.73476465,0.00049981,120]
[356537626,1742636480323,-947.4,0.00049981,120]
[356537627,1742636480349,-947.4,0.00049981,120]
[356537628,1742636480375,-947.4,0.00049981,120]
[356537629,1742636480401,-947.4,0.00049981,120]
[356537630,1742636480426,-947.4,0.00049981,120]
[356537631,1742636480452,-947.4,0.00049981,120]
[356537632,1742636480477,-947.4,0.00049981,120]
[356537633,1742636480503,-947.4,0.00049981,120]
[356537634,1742636480527,-947.4,0.00049981,120]
[356537635,1742636480552,-947.45347528,0.00049981,120]
[356537636,1742636480579,-500.0,0.00049981,120]
[356537637,1742636480604,-249.89913258,0.00049981,120]
[356537638,1742636480628,-500.0,0.00049981,120]
[356537639,1742636480654,-500.0,0.00049981,120]
[356537640,1742636480679,-500.0,0.00049981,120]
[356537641,1742636480705,-500.0,0.00049981,120]
[356537642,1742636480730,-500.0,0.00049981,120]
[356537643,1742636480756,-335.45728952,0.00049981,120]
[356537644,1742636480931,-564.67,0.00049981,120]
[356537645,1742636480957,-564.67,0.00049981,120]
[356537646,1742636480982,-564.67,0.00049981,120]
[356537647,1742636481008,-564.67,0.00049981,120]
[356537648,1742636481033,-564.67,0.00049981,120]
[356537649,1742636481058,-564.67,0.00049981,120]
[356537650,1742636481082,-564.67,0.00049981,120]
[356537651,1742636481107,-564.67,0.00049981,120]
[356537652,1742636481134,-564.67,0.00049981,120]
[356537653,1742636481159,-564.67,0.00049981,120]
[356537654,1742636481182,-564.67,0.00049981,120]
[356537655,1742636481206,-564.67,0.00049981,120]
[356537656,1742636481230,-564.67,0.00049981,120]
[356537657,1742636481255,-564.67,0.00049981,120]
[356537658,1742636481279,-564.67,0.00049981,120]
[356537659,1742636481303,-564.67,0.00049981,120]
[356537660,1742636481328,-564.67,0.00049981,120]
[356537661,1742636481354,-564.67,0.00049981,120]
[356537662,1742636481380,-564.67,0.00049981,120]
[356537663,1742636481406,-564.67,0.00049981,120]
[356537664,1742636481431,-564.67,0.00049981,120]
[356537665,1742636481455,-564.67,0.00049981,120]
[356537666,1742636481482,-564.67,0.00049981,120]
[356537667,1742636481507,-564.69635536,0.00049981,120]
[356537668,1742636481532,-522.59,0.00049981,120]
[356537669,1742636481557,-522.59,0.00049981,120]
[356537670,1742636481581,-522.59,0.00049981,120]
[356537671,1742636481605,-522.59,0.00049981,120]
[356537672,1742636481630,-522.59,0.00049981,120]
[356537673,1742636481659,-522.59,0.00049981,120]
[356537674,1742636481683,-522.59,0.00049981,120]
[356537675,1742636481708,-522.59,0.00049981,120]
[356537676,1742636481733,-522.59,0.00049981,120]
[356537677,1742636481759,-522.59,0.00049981,120]
[356537678,1742636481786,-522.59,0.00049981,120]
[356537679,1742636481811,-522.59,0.00049981,120]
[356537680,1742636481838,-522.59,0.00049981,120]